fUSD/lending_fUSD_20240105
["ID","MTS","AMOUNT","RATE_DAILY","PERIOD"]
[310321803,1704473433015,-208.0,0.0002736,2]
[310321804,1704473433025,-282.0,0.0002736,2]
[310321805,1704473433035,-183.01,0.0002738,2]
[310321806,1704473433044,-157.40802707,0.00027397,2]
[310321807,1704473433054,-347.04143748,0.00027397,2]
[310321808,1704473433066,-475.25856252,0.00027397,2]
[310321809,1704473433076,-250.0,0.00027397,2]
[310321810,1704473433085,-165.15,0.00027398,2]
[310321811,1704473433095,-250.0,0.000274,2]
[310321812,1704473433105,-184.78,0.00027501,2]
[310321813,1704473433114,-724.84,0.00027511,2]
[310321814,1704473433125,-444.91983651,0.00027512,2]
[310321815,1704473433138,-264.68016349,0.00027512,2]
[310321816,1704473433149,-305.40983651,0.00027514,2]
[310321817,1704473433162,-608.55071799,0.00027514,2]
[310321818,1704473433196,-219.5755105,0.00027514,2]
[310321819,1704473433206,-711.14,0.00027515,2]
[310321820,1704473433218,-714.38,0.00027515,2]
[310321821,1704473433228,-208.59349356,0.00027515,2]
[310321822,1704473433240,-178.40650644,0.00027515,2]
[310321823,1704473433250,-652.98509007,0.00027515,2]
[310321824,1704473433265,-290.01490993,0.00027515,2]
[310321825,1704473433275,-227.83577703,0.00027515,2]
[310321826,1704473433286,-594.94122297,0.00027515,2]
[310321827,1704473433296,-462.90848624,0.00027515,2]
[310321828,1704473433308,-771.09151376,0.00027515,2]
[310321829,1704473433317,-321.0036629,0.00027515,2]
[310321830,1704473433334,-934.9963371,0.00027515,2]
[310321831,1704473433344,-248.63513044,0.00027515,2]
[310321832,1704473433379,-213.08686956,0.00027515,2]
[310321833,1704473433390,-235.957,0.00027515,2]
[310321834,1704473433401,-168.51020168,0.00027515,2]
[310321835,1704473433414,-297.23979832,0.00027515,2]
[310321836,1704473433424,-881.0,0.00027515,2]
[310321837,1704473433433,-318.0,0.00027515,2]
[310321838,1704473433446,-2266.0,0.00027515,2]
[310321839,1704473433456,-2896.0,0.00027515,2]
[310321840,1704473433468,-150.0,0.00027515,2]
[310321841,1704473433478,-893.923,0.00027515,2]
[310321842,1704473433489,-2005.639,0.00027515,2]
[310321843,1704473433499,-842.78,0.00027515,2]
[310321844,1704473433509,-757.152,0.00027515,2]
[310321845,1704473433519,-150.0,0.00027515,2]
[310321846,1704473433528,-876.27898379,0.00027515,2]
[310321850,1704473438268,-149.72101621,0.00027515,2]
[310321851,1704473438278,-318.76547866,0.00027556,2]
[310321852,1704473438291,-503.53452134,0.00027556,2]
[310321853,1704473438301,-87.96547866,0.00027586,2]
[310321854,1704473438332,-64.03790441,0.00027586,2]
[310321855,1704473438342,-184.78,0.00027643,2]
[310321856,1704473438351,-152.32,0.00027652,2]
[310321857,1704473438366,-67.94193016,0.00027714,2]
[310321858,1704473438379,-754.35806984,0.00027714,2]
[310321859,1704473438390,-184.78,0.00027786,2]
[310321860,1704473438400,-822.3,0.00027872,2]
[310321861,1704473438411,-184.78,0.00027928,2]
[310321862,1704473438421,-891.43172341,0.00027945,2]
[310321863,1704473438486,-8815.81827659,0.00027945,2]
[310321864,1704473438496,-999.73,0.00027945,2]
[310321865,1704473438506,-335.2,0.00028014,2]
[310321866,1704473438518,-822.3,0.0002803,2]
[310321867,1704473438529,-208.0,0.0002807,2]
[310321868,1704473438540,-282.0,0.0002807,2]
[310321869,1704473438550,-184.78,0.00028071,2]
[310321870,1704473438560,-152.32,0.00028172,2]
[310321871,1704473438570,-822.3,0.00028189,2]
[310321872,1704473438580,-184.78,0.00028213,2]
[310321873,1704473438590,-521.69660047,0.00028314,4]
[310321874,1704473438600,-822.3,0.00028347,2]
[310321875,1704473438611,-184.78,0.00028356,2]
[310321876,1704473438621,-152.00338307,0.00028402,2]
[310321877,1704473438631,-184.78,0.00028498,2]
[310321878,1704473438642,-822.3,0.00028505,2]
[310321879,1704473438652,-277.16,0.00028568,2]
[310321880,1704473438662,-184.78,0.00028641,2]
[310321881,1704473438672,-822.3,0.00028664,2]
[310321882,1704473438682,-152.32,0.00028692,2]
[310321883,1704473438693,-280.27668862,0.00028706,2]
[310321884,1704473438703,-11269.97481725,0.0002871,2]
[310321885,1704473438715,-800.0,0.00028718,5]
[310321886,1704473438725,-277.16,0.00028719,2]
[310321887,1704473438735,-184.78,0.00028783,2]
[310321888,1704473438746,-208.0,0.0002879,2]
[310321889,1704473438756,-282.0,0.0002879,2]
[310321890,1704473438768,-176.23452681,0.00028796,2]
[310321891,1704473438778,-380.83098952,0.00028796,2]
[310321892,1704473438788,-175.84259707,0.00028796,4]
[310321893,1704473438798,-379.97306694,0.00028796,2]
[310321894,1704473438808,-822.3,0.00028822,2]
[310321895,1704473438818,-11917.65321199,0.00028859,2]
[310321896,1704473438827,-277.16,0.00028869,2]
[310321897,1704473438838,-166.99,0.00028881,2]
[310321898,1704473438848,-190.83209518,0.00028884,2]
[310321899,1704473438861,-650.0,0.00028892,2]
[310321900,1704473438875,-2236.48368061,0.00028892,2]
[310321901,1704473438888,-1179.19,0.00028893,2]
[310321902,1704473438898,-1179.19,0.00028893,2]
[310321903,1704473438909,-1179.19,0.00028893,2]
[310321904,1704473438919,-1179.19,0.00028893,2]
[310321905,1704473438929,-1179.19,0.00028893,2]
[310321907,1704473438939,-1179.19,0.00028893,2]
[310321909,1704473438949,-1179.19,0.00028893,2]
[310321912,1704473438959,-1179.19,0.00028893,2]
[310321915,1704473438970,-1179.19,0.00028893,2]
[310321918,1704473438981,-1179.19,0.00028893,2]
[310321920,1704473438991,-46386.70369576,0.00028894,2]
[310321922,1704473439005,-122663.87656093,0.00028894,2]
[310321923,1704473439018,-218205.59825611,0.00028894,2]
[310321924,1704473439031,-408898.83153207,0.00028894,2]
[310321925,1704473439045,-67176.40592153,0.00028894,2]
[310321926,1704473439058,-76298.57548771,0.00028894,2]
[310321935,1704473439153,-34806.72933214,0.00028894,2]
[310321937,1704473439163,-38763.2836,0.00028896,2]
[310321939,1704473439173,-155.0,0.00028896,2]
[310321941,1704473439182,-360.88881145,0.00028897,2]
[310321943,1704473439192,-1521.0888,0.00028898,2]
[310321945,1704473439202,-295.8531,0.00028898,2]
[310321947,1704473439216,-1632.3267,0.00028898,2]
[310321949,1704473439226,-1000.0,0.00028898,2]
[310321951,1704473439235,-40314.8916,0.00028898,2]
[310321953,1704473439245,-2500.0,0.00028898,2]
[310321955,1704473439255,-174.58086039,0.000289,2]
[310321957,1704473439265,-184.78,0.00028926,2]
[310321960,1704473439275,-403.37,0.00028959,2]
[310321962,1704473439284,-417.95209149,0.00028982,2]
[310321964,1704473439294,-335.2,0.00028993,2]
[310321966,1704473439304,-686.69000892,0.00028995,2]
[310321968,1704473439313,-717.59,0.00028996,2]
[310321970,1704473439323,-166.84846607,0.00028996,2]
[310321972,1704473439333,-269.95716749,0.00028996,2]
[310321974,1704473439343,-693.59855735,0.00028996,2]
[310321976,1704473439353,-214.47459225,0.00028996,2]
[310321977,1704473439363,-155.43426872,0.00028996,2]
[310321978,1704473439374,-155.0,0.00028996,2]
[310321979,1704473439383,-2263.96943386,0.00028996,2]
[310321980,1704473439393,-155.0,0.00028996,2]
[310321981,1704473439402,-217.28450417,0.00028996,2]
[310321982,1704473439413,-309.16657707,0.00028996,2]
[310321983,1704473439423,-253.03478513,0.00028996,2]
[310321984,1704473439432,-3177.35057055,0.00028996,2]
[310321985,1704473439443,-364.28657799,0.00028996,2]
[310321986,1704473439453,-260.53596921,0.00028996,2]
[310321987,1704473439462,-3313.16325902,0.00028996,2]
[310321988,1704473439473,-211.806731,0.00028996,2]
[310321989,1704473439482,-484.17224842,0.00028996,2]
[310321990,1704473439492,-302.21498595,0.00028996,2]
[310321991,1704473439502,-354.60259077,0.00028996,2]
[310321992,1704473439512,-156.29087205,0.00028996,2]
[310321993,1704473439522,-3866.53307652,0.00028996,2]
[310321994,1704473439533,-418.34918944,0.00028996,2]
[310321995,1704473439543,-184.06324017,0.00028996,2]
[310321996,1704473439552,-1852.14778372,0.00028996,2]
[310321997,1704473439562,-863.75413107,0.00028996,2]
[310321998,1704473439573,-300.69965138,0.00028996,2]
[310321999,1704473439583,-1264.12879631,0.00028996,2]
[310322000,1704473439594,-2697.56907324,0.00028996,2]
[310322001,1704473439604,-155.0,0.00028996,2]
[310322002,1704473439614,-929.34840158,0.00028996,2]
[310322003,1704473439624,-961.95771661,0.00028997,2]
[310322004,1704473439634,-12262.29609774,0.00028998,2]
[310322005,1704473439643,-2000.0,0.00028998,2]
[310322006,1704473439653,-200.0,0.00028998,2]
[310322007,1704473439662,-190.4218231,0.00028999,2]
[310322008,1704473439672,-150.0,0.00028999,2]
[310322009,1704473439682,-129007.34190617,0.00029,2]
[310322010,1704473439691,-124422.5605654,0.00029,2]
[310322011,1704473439701,-36362.0670683,0.00029,2]
[310322012,1704473439711,-14087.3848483,0.00029,2]
[310322013,1704473439721,-4936.1236016,0.00029,2]
[310322014,1704473439730,-420.01341055,0.00029,2]
[310322015,1704473439740,-29371.4697381,0.00029,2]
[310322016,1704473439749,-6823.8790384,0.00029,2]
[310322017,1704473439759,-142912.5481212,0.00029,2]
[310322018,1704473439769,-277.16,0.00029019,2]
[310322019,1704473439779,-184.78,0.00029068,2]
[310322020,1704473439960,-150.0,0.00029136,2]
[310322021,1704473439974,-884.29543031,0.0002915,2]
[310322022,1704473439985,-1062.51344054,0.00029162,2]
[310322023,1704473439994,-277.16,0.0002917,2]
[310322024,1704473440002,-184.78,0.00029211,2]
[310322025,1704473440012,-152.32,0.00029213,2]
[310322026,1704473440021,-152.00338307,0.00029219,2]
[310322027,1704473440031,-872.48238634,0.00029288,2]
[310322028,1704473440041,-200.0,0.00029288,2]
[310322029,1704473440051,-973.95555245,0.00029294,2]
[310322030,1704473440061,-277.16,0.0002932,2]
[310322031,1704473440071,-184.78,0.00029353,2]
[310322033,1704473440080,-380.83098948,0.0002938,2]
[310322034,1704473440091,-175.84259704,0.00029404,4]
[310322035,1704473440101,-150.0,0.0002941,2]
[310322036,1704473440110,-150.0,0.0002941,2]
[310322037,1704473440120,-379.97306692,0.00029416,2]
[310322038,1704473440130,-277.16,0.0002947,2]
[310322039,1704473440138,-184.78,0.00029496,2]
[310322040,1704473440146,-208.0,0.000295,2]
[310322041,1704473440156,-282.0,0.000295,2]
[310322042,1704473440166,-227.2009,0.00029536,2]
[310322043,1704473440175,-277.67,0.000296,2]
[310322044,1704473440184,-277.16,0.00029621,2]
[310322045,1704473440195,-184.78,0.00029638,2]
[310322046,1704473440204,-150.0,0.00029684,2]
[310322047,1704473440215,-204.0,0.00029705,2]
[310322048,1704473440224,-152.32,0.00029733,2]
[310322049,1704473440234,-666.0,0.00029771,5]
[310322050,1704473440244,-277.16,0.00029771,2]
[310322051,1704473440253,-184.78,0.00029781,2]
[310322052,1704473440264,-2423.05760652,0.000299,2]
[310322053,1704473440274,-2000.0,0.000299,2]
[310322054,1704473440284,-208.0,0.000299,2]
[310322055,1704473440294,-7500.0,0.000299,2]
[310322056,1704473440303,-291.65838666,0.000299,2]
[310322057,1704473440314,-1478.44300617,0.000299,2]
[310322058,1704473440324,-277.16,0.00029922,2]
[310322059,1704473440334,-380.83098948,0.00029964,2]
[310322060,1704473440344,-335.2,0.00029971,2]
[310322061,1704473440353,-190.83209518,0.0002999,2]
[310322062,1704473440363,-997.95732003,0.00029998,4]
[310322063,1704473440373,-1207.93822802,0.0003,2]
[310322064,1704473440382,-155.0,0.0003,2]
[310322065,1704473440391,-5000.0,0.0003,3]
[310322066,1704473440401,-155.0,0.0003,2]
[310322067,1704473440411,-420072.70334076,0.0003,2]
[310322068,1704473440421,-193.88111938,0.0003,4]
[310322069,1704473440430,-689.70324588,0.0003,2]
[310322070,1704473440439,-1879.68139,0.0003,2]
[310322071,1704473440449,-175.84259704,0.00030011,4]
[310322072,1704473440458,-5000.0,0.00030036,2]
[310322073,1704473440469,-250.0,0.00030036,2]
[310322074,1704473440478,-50095.6417,0.00030036,3]
[310322075,1704473440488,-152.00338307,0.00030036,2]
[310322076,1704473440497,-379.97306692,0.00030036,2]
[310322077,1704473440507,-277.16,0.00030072,2]
[310322078,1704473440517,-200.24114058,0.00030133,4]
[310322079,1704473440527,-4020.55184873,0.00030133,4]
[310322080,1704473440536,-430.12551417,0.00030133,4]
[310322081,1704473440546,-202.20749163,0.00030133,4]
[310322082,1704473440555,-292.47295802,0.00030134,2]
[310322083,1704473440565,-190.4218231,0.00030135,2]
[310322084,1704473440575,-150.0,0.00030135,2]
[310322085,1704473440584,-500.0,0.00030136,2]
[310322086,1704473440593,-197.89304131,0.00030136,2]
[310322087,1704473440602,-522.42275058,0.00030136,2]
[310322088,1704473440611,-500.0,0.00030136,2]
[310322089,1704473440621,-500.0,0.00030136,2]
[310322090,1704473440631,-500.0,0.00030136,2]
[310322091,1704473440641,-500.0,0.00030136,2]
[310322092,1704473440650,-500.0,0.00030136,2]
[310322093,1704473440664,-500.0,0.00030136,2]
[310322094,1704473440674,-500.0,0.00030136,2]
[310322095,1704473440683,-500.0,0.00030136,2]
[310322096,1704473440693,-202.67945938,0.00030136,2]
[310322097,1704473440702,-213.23496922,0.00030136,2]
[310322098,1704473440712,-565.54711534,0.00030136,2]
[310322099,1704473440722,-169.48264491,0.00030136,2]
[310322100,1704473440732,-521.10709979,0.00030136,2]
[310322101,1704473440743,-160.0,0.00030136,26]
[310322102,1704473440753,-500.0,0.00030136,2]
[310322103,1704473440762,-500.0,0.00030136,2]
[310322104,1704473440771,-500.0,0.00030136,2]
[310322105,1704473440781,-500.0,0.00030136,2]
[310322106,1704473440791,-500.0,0.00030136,2]
[310322107,1704473440801,-489.1670766,0.00030136,2]
[310322108,1704473440810,-500.0,0.00030136,2]
[310322109,1704473440820,-500.0,0.00030136,2]
[310322110,1704473440830,-500.0,0.00030136,2]
[310322111,1704473440840,-504.78462602,0.00030136,2]
[310322112,1704473440849,-500.0,0.00030136,2]
[310322113,1704473440864,-500.0,0.00030136,2]
[310322114,1704473440874,-500.0,0.00030136,2]
[310322115,1704473440883,-500.0,0.00030136,2]
[310322116,1704473440893,-500.0,0.00030136,2]
[310322117,1704473440903,-500.0,0.00030136,2]
[310322118,1704473440912,-500.0,0.00030136,2]
[310322119,1704473440921,-588.98313936,0.00030136,2]
[310322120,1704473440931,-500.0,0.00030136,2]
[310322121,1704473440940,-500.0,0.00030136,2]
[310322122,1704473440951,-500.0,0.00030136,2]
[310322123,1704473440960,-500.0,0.00030136,2]
[310322124,1704473440972,-500.0,0.00030136,2]
[310322125,1704473440982,-500.0,0.00030136,2]
[310322126,1704473440992,-500.0,0.00030136,2]
[310322127,1704473441002,-500.0,0.00030136,2]
[310322128,1704473441012,-500.0,0.00030136,2]
[310322129,1704473441022,-500.0,0.00030136,2]
[310322130,1704473441032,-500.0,0.00030136,2]
[310322131,1704473441041,-500.0,0.00030136,2]
[310322132,1704473441051,-500.0,0.00030136,2]
[310322133,1704473441060,-500.0,0.00030136,2]
[310322134,1704473441070,-500.0,0.00030136,2]
[310322135,1704473441079,-500.0,0.00030136,2]
[310322136,1704473441089,-500.0,0.00030136,2]
[310322137,1704473441098,-338.83283893,0.00030136,2]
[310322138,1704473441107,-500.0,0.00030136,2]
[310322139,1704473441116,-500.0,0.00030136,2]
[310322140,1704473441125,-420.28158978,0.00030136,2]
[310322141,1704473441135,-500.0,0.00030136,2]
[310322142,1704473441144,-500.0,0.00030136,2]
[310322143,1704473441154,-679.76,0.00030136,2]
[310322144,1704473441164,-500.0,0.00030136,2]
[310322145,1704473441174,-500.0,0.00030136,2]
[310322146,1704473441184,-500.0,0.00030136,2]
[310322147,1704473441194,-500.0,0.00030136,2]
[310322148,1704473441203,-500.0,0.00030136,2]
[310322149,1704473441213,-500.0,0.00030136,2]
[310322150,1704473441222,-500.0,0.00030136,2]
[310322151,1704473441232,-500.0,0.00030136,2]
[310322152,1704473441242,-500.0,0.00030136,2]
[310322153,1704473441252,-500.0,0.00030136,2]
[310322154,1704473441261,-500.0,0.00030136,2]
[310322155,1704473441271,-598.21463644,0.00030136,2]
[310322156,1704473441280,-536.41247134,0.00030136,2]
[310322157,1704473441290,-502.76213344,0.00030136,2]
[310322158,1704473441299,-500.0,0.00030136,2]
[310322159,1704473441308,-595.64484694,0.00030136,2]
[310322160,1704473441318,-173.49916985,0.00030136,2]
[310322161,1704473441331,-500.0,0.00030136,2]
[310322162,1704473441341,-500.0,0.00030136,2]
[310322163,1704473441351,-533.52628187,0.00030136,2]
[310322164,1704473441361,-500.0,0.00030136,2]
[310322165,1704473441371,-500.0,0.00030136,2]
[310322166,1704473441381,-500.0,0.00030136,2]
[310322167,1704473441392,-509.35823605,0.00030136,2]
[310322168,1704473441402,-500.0,0.00030136,2]
[310322169,1704473441411,-500.0,0.00030136,2]
[310322170,1704473441420,-500.0,0.00030136,2]
[310322171,1704473441430,-500.0,0.00030136,2]
[310322172,1704473441440,-500.0,0.00030136,2]
[310322173,1704473441449,-500.0,0.00030136,2]
[310322174,1704473441459,-500.0,0.00030136,2]
[310322175,1704473441469,-500.0,0.00030136,2]
[310322176,1704473441478,-500.0,0.00030136,2]
[310322177,1704473441487,-500.0,0.00030136,2]
[310322178,1704473441497,-500.0,0.00030136,2]
[310322179,1704473441507,-500.0,0.00030136,2]
[310322180,1704473441517,-500.0,0.00030136,2]
[310322181,1704473441526,-500.0,0.00030136,2]
[310322182,1704473441536,-500.0,0.00030136,2]
[310322183,1704473441546,-500.0,0.00030136,2]
[310322184,1704473441555,-500.0,0.00030136,2]
[310322185,1704473441565,-500.0,0.00030136,2]
[310322186,1704473441574,-500.0,0.00030136,2]
[310322187,1704473441584,-449.64,0.00030136,2]
[310322188,1704473441595,-500.0,0.00030136,2]
[310322189,1704473441604,-500.0,0.00030136,2]
[310322190,1704473441614,-500.0,0.00030136,2]
[310322191,1704473441625,-500.0,0.00030136,2]
[310322192,1704473441636,-257.83208132,0.00030136,2]
[310322193,1704473441645,-500.0,0.00030136,2]
[310322194,1704473441655,-500.0,0.00030136,2]
[310322195,1704473441665,-500.0,0.00030136,2]
[310322196,1704473441675,-500.0,0.00030136,2]
[310322197,1704473441685,-500.0,0.00030136,2]
[310322198,1704473441694,-505.76397967,0.00030136,2]
[310322199,1704473441704,-500.0,0.00030136,2]
[310322200,1704473441715,-216.92482583,0.00030136,2]
[310322201,1704473441724,-500.0,0.00030136,2]
[310322202,1704473441734,-193.81839955,0.00030136,2]
[310322203,1704473441744,-550.68003086,0.00030136,2]
[310322204,1704473441753,-500.0,0.00030136,2]
[310322205,1704473441763,-500.0,0.00030136,2]
[310322206,1704473441773,-291.29545532,0.00030136,2]
[310322207,1704473441783,-500.0,0.00030136,2]
[310322208,1704473441793,-500.0,0.00030136,2]
[310322209,1704473441802,-500.0,0.00030136,2]
[310322210,1704473441812,-500.0,0.00030136,2]
[310322211,1704473441822,-500.0,0.00030136,2]
[310322212,1704473441831,-500.0,0.00030136,2]
[310322213,1704473441842,-500.0,0.00030136,2]
[310322214,1704473441852,-500.0,0.00030136,2]
[310322215,1704473441868,-500.0,0.00030136,2]
[310322216,1704473441878,-500.0,0.00030136,2]
[310322217,1704473441887,-500.0,0.00030136,2]
[310322218,1704473441897,-500.0,0.00030136,2]
[310322219,1704473441906,-500.0,0.00030136,2]
[310322220,1704473441916,-500.0,0.00030136,2]
[310322221,1704473441927,-500.0,0.00030136,2]
[310322222,1704473441936,-500.0,0.00030136,2]
[310322223,1704473441948,-500.0,0.00030136,2]
[310322224,1704473441958,-500.0,0.00030136,2]
[310322225,1704473441969,-500.0,0.00030136,2]
[310322226,1704473441979,-500.0,0.00030136,2]
[310322227,1704473441989,-500.0,0.00030136,2]
[310322228,1704473442001,-500.0,0.00030136,2]
[310322229,1704473442011,-500.0,0.00030136,2]
[310322230,1704473442020,-500.0,0.00030136,2]
[310322231,1704473442030,-500.0,0.00030136,2]
[310322232,1704473442039,-500.0,0.00030136,2]
[310322233,1704473442049,-500.0,0.00030136,2]
[310322234,1704473442058,-500.0,0.00030136,2]
[310322235,1704473442069,-500.0,0.00030136,2]
[310322236,1704473442079,-500.0,0.00030136,2]
[310322237,1704473442089,-500.0,0.00030136,2]
[310322238,1704473442100,-500.0,0.00030136,2]
[310322239,1704473442110,-500.0,0.00030136,2]
[310322240,1704473442120,-500.0,0.00030136,2]
[310322241,1704473442129,-500.0,0.00030136,2]
[310322243,1704473442139,-732.22,0.00030136,2]
[310322244,1704473442149,-500.0,0.00030136,2]
[310322246,1704473442158,-500.0,0.00030136,2]
[310322248,1704473442168,-912.12,0.00030136,2]
[310322250,1704473442179,-500.0,0.00030136,2]
[310322251,1704473442188,-500.0,0.00030136,2]
[310322254,1704473442198,-500.0,0.00030136,2]
[310322255,1704473442208,-500.0,0.00030136,2]
[310322258,1704473442219,-500.0,0.00030136,2]
[310322260,1704473442229,-500.0,0.00030136,2]
[310322261,1704473442239,-500.0,0.00030136,2]
[310322264,1704473442249,-500.0,0.00030136,2]
[310322267,1704473442259,-500.0,0.00030136,2]
[310322268,1704473442268,-500.0,0.00030136,2]
[310322269,1704473442278,-500.0,0.00030136,2]
[310322270,1704473442287,-594.35586224,0.00030136,2]
[310322271,1704473442297,-500.0,0.00030136,2]
[310322272,1704473442307,-557.95,0.00030136,2]
[310322273,1704473442316,-500.0,0.00030136,2]
[310322274,1704473442326,-500.0,0.00030136,2]
[310322275,1704473442336,-711.61,0.00030136,2]
[310322276,1704473442346,-500.0,0.00030136,2]
[310322277,1704473442356,-777.32,0.00030136,2]
[310322278,1704473442366,-500.0,0.00030136,2]
[310322279,1704473442376,-500.0,0.00030136,2]
[310322280,1704473442385,-500.0,0.00030136,2]
[310322281,1704473442395,-500.0,0.00030136,2]
[310322282,1704473442405,-500.0,0.00030136,2]
[310322283,1704473442415,-500.0,0.00030136,2]
[310322284,1704473442425,-500.0,0.00030136,2]
[310322285,1704473442434,-205.55505535,0.00030136,2]
[310322286,1704473442444,-500.0,0.00030136,2]
[310322287,1704473442454,-500.0,0.00030136,2]
[310322288,1704473442466,-500.0,0.00030136,2]
[310322289,1704473442474,-500.0,0.00030136,2]
[310322290,1704473442485,-576.05063047,0.00030136,2]
[310322291,1704473442494,-500.0,0.00030136,2]
[310322292,1704473442504,-500.0,0.00030136,2]
[310322293,1704473442513,-500.0,0.00030136,2]
[310322294,1704473442523,-500.0,0.00030136,2]
[310322295,1704473442532,-500.0,0.00030136,2]
[310322296,1704473442542,-500.0,0.00030136,2]
[310322297,1704473442551,-500.0,0.00030136,2]
[310322298,1704473442561,-500.0,0.00030136,2]
[310322299,1704473442570,-500.0,0.00030136,2]
[310322300,1704473442580,-500.0,0.00030136,2]
[310322301,1704473442590,-500.0,0.00030136,2]
[310322302,1704473442601,-500.0,0.00030136,2]
[310322303,1704473442611,-611.91907231,0.00030136,2]
[310322304,1704473442621,-592.48,0.00030136,2]
[310322305,1704473442631,-500.0,0.00030136,2]
[310322306,1704473442641,-500.0,0.00030136,2]
[310322307,1704473442651,-500.0,0.00030136,2]
[310322308,1704473442661,-500.0,0.00030136,2]
[310322309,1704473442670,-500.0,0.00030136,2]
[310322310,1704473442680,-500.0,0.00030136,2]
[310322311,1704473442690,-1000.0,0.00030136,2]
[310322312,1704473442700,-500.0,0.00030136,2]
[310322313,1704473442710,-996.51,0.00030136,2]
[310322314,1704473442722,-500.0,0.00030136,2]
[310322315,1704473442732,-500.0,0.00030136,2]
[310322316,1704473442742,-500.0,0.00030136,2]
[310322317,1704473442752,-500.0,0.00030136,2]
[310322318,1704473442762,-500.0,0.00030136,2]
[310322319,1704473442771,-500.0,0.00030136,2]
[310322320,1704473442781,-500.0,0.00030136,2]
[310322321,1704473442792,-545.8695736,0.00030136,2]
[310322322,1704473442802,-500.0,0.00030136,2]
[310322323,1704473442811,-500.0,0.00030136,2]
[310322324,1704473442821,-500.0,0.00030136,2]
[310322325,1704473442831,-500.0,0.00030136,2]
[310322326,1704473442840,-500.0,0.00030136,2]
[310322327,1704473442850,-518.88648019,0.00030136,2]
[310322328,1704473442864,-500.0,0.00030136,2]
[310322329,1704473442874,-710.5,0.00030136,2]
[310322330,1704473442884,-500.0,0.00030136,2]
[310322331,1704473442893,-500.0,0.00030136,2]
[310322332,1704473442904,-500.0,0.00030136,2]
[310322333,1704473442913,-500.0,0.00030136,2]
[310322334,1704473442922,-500.0,0.00030136,2]
[310322335,1704473442932,-666.1,0.00030136,2]
[310322336,1704473442941,-517.10647755,0.00030136,30]
[310322337,1704473442951,-537.71,0.00030136,2]
[310322338,1704473442961,-500.0,0.00030136,2]
[310322339,1704473442973,-500.0,0.00030136,2]
[310322340,1704473442982,-617.72,0.00030136,2]
[310322341,1704473442991,-500.0,0.00030136,2]
[310322342,1704473443002,-500.0,0.00030136,2]
[310322343,1704473443011,-647.0,0.00030136,2]
[310322344,1704473443020,-500.0,0.00030136,2]
[310322346,1704473443029,-500.0,0.00030136,2]
[310322348,1704473443040,-500.0,0.00030136,2]
[310322350,1704473443049,-500.0,0.00030136,2]
[310322352,1704473443059,-500.0,0.00030136,2]
[310322354,1704473443069,-500.0,0.00030136,2]
[310322356,1704473443078,-772.2,0.00030136,2]
[310322357,1704473443087,-500.0,0.00030136,2]
[310322358,1704473443096,-532.22188819,0.00030136,2]
[310322359,1704473443106,-500.0,0.00030136,2]
[310322360,1704473443115,-500.0,0.00030136,2]
[310322361,1704473443125,-500.0,0.00030136,2]
[310322362,1704473443134,-500.0,0.00030136,2]
[310322363,1704473443144,-500.0,0.00030136,2]
[310322365,1704473443154,-500.0,0.00030136,2]